fUSD/lending_fUSD_20260127
["ID","MTS","AMOUNT","RATE_DAILY","PERIOD"]
[403716029,1769503177561,-610.98219507,0.00015256,2]
[403716030,1769503180276,-194.48163255,0.00015256,2]
[403716031,1769503182798,-165.59896283,0.00015256,2]
[403716032,1769503186156,-333.71542829,0.00015256,2]
[403716034,1769503213483,-130.1190707,0.00015256,2]
[403716035,1769503213505,-131.15041275,0.00015256,2]
[403716036,1769503295902,167.37,0.00012291,2]
[403716037,1769503333813,-145.84958725,0.00015256,2]
[403716038,1769503333837,-64.50379318,0.00015264,2]
[403716039,1769503335380,-130.49620682,0.00015264,2]
[403716040,1769503335402,-187.42984328,0.00015272,2]
[403716041,1769503394284,-112.57015672,0.00015272,2]
[403716042,1769503394311,-39.12574731,0.0001528,2]
[403716044,1769503396491,-214.94958893,0.0001528,2]
[403716045,1769503396528,-57.44207232,0.0001528,2]
[403716046,1769503409598,166.66,0.00014888,2]
[403716047,1769503409816,166.66,0.00015201,2]
[403716102,1769503621718,1439.96,0.00015041,2]
[403716104,1769503694723,-137.55792768,0.0001528,2]
[403716105,1769503694745,-54.056626,0.00015282,2]
[403716152,1769503813562,-140.943374,0.00015282,2]
[403716153,1769503813584,-48.59180089,0.00015282,2]
[403716154,1769503815757,-201.40819911,0.00015282,2]
[403716155,1769503815780,-69.65921741,0.00015282,2]
[403716158,1769503831665,-207.34078259,0.00015282,2]
[403716159,1769503831675,-195.0,0.00015283,2]
[403716160,1769503831685,-250.0,0.00015284,2]
[403716161,1769503831695,-195.0,0.00015289,2]
[403716162,1769503831704,-354.55,0.00015293,2]
[403716163,1769503831714,-1200.0,0.00015312,2]
[403716164,1769503831724,-300.0,0.00015313,2]
[403716165,1769503831733,-46.3366294,0.00015314,2]
[403716166,1769503831745,-153.6633706,0.00015314,2]
[403716167,1769503831755,-319.18620312,0.00015314,2]
[403716168,1769503831764,-500.0,0.00015314,2]
[403716169,1769503831774,-500.0,0.00015314,2]
[403716170,1769503831783,-500.0,0.00015314,2]
[403716171,1769503831792,-500.0,0.00015314,2]
[403716172,1769503831802,-500.0,0.00015314,2]
[403716173,1769503831811,-500.0,0.00015314,2]
[403716174,1769503831821,-500.0,0.00015314,2]
[403716175,1769503831831,-500.0,0.00015314,2]
[403716176,1769503831841,-500.0,0.00015314,2]
[403716177,1769503831851,-500.0,0.00015314,2]
[403716178,1769503831860,-500.0,0.00015314,2]
[403716179,1769503831870,-500.0,0.00015314,2]
[403716180,1769503831879,-500.0,0.00015314,2]
[403716181,1769503831888,-500.0,0.00015314,2]
[403716182,1769503831897,-151.0,0.00015314,2]
[403716183,1769503831906,-151.0,0.00015314,2]
[403716184,1769503831915,-151.0,0.00015314,2]
[403716185,1769503831924,-151.0,0.00015314,2]
[403716186,1769503831933,-151.0,0.00015314,2]
[403716187,1769503831943,-500.0,0.00015314,2]
[403716188,1769503831951,-151.0,0.00015314,2]
[403716189,1769503831961,-500.0,0.00015314,2]
[403716190,1769503831971,-151.0,0.00015314,2]
[403716191,1769503831980,-500.0,0.00015314,2]
[403716192,1769503831989,-151.0,0.00015314,2]
[403716193,1769503831999,-500.0,0.00015314,2]
[403716194,1769503832008,-151.0,0.00015314,2]
[403716195,1769503832017,-500.0,0.00015314,2]
[403716196,1769503832026,-151.0,0.00015314,2]
[403716197,1769503832035,-500.0,0.00015314,2]
[403716198,1769503832045,-151.0,0.00015314,2]
[403716199,1769503832055,-500.0,0.00015314,2]
[403716200,1769503832064,-151.0,0.00015314,2]
[403716201,1769503832073,-500.0,0.00015314,2]
[403716202,1769503832082,-151.0,0.00015314,2]
[403716203,1769503832091,-500.0,0.00015314,2]
[403716204,1769503832100,-500.0,0.00015314,2]
[403716205,1769503832109,-500.0,0.00015314,2]
[403716207,1769503832120,-500.0,0.00015314,2]
[403716209,1769503832138,-500.0,0.00015314,2]
[403716210,1769503832148,-150.0,0.00015318,2]
[403716212,1769503832157,-2096.474,0.00015322,2]
[403716213,1769503832168,-173.874,0.00015322,2]
[403716214,1769503832178,-339.90586085,0.00015322,2]
[403716215,1769503832187,-500.0,0.00015322,2]
[403716216,1769503832197,-365.52222634,0.00015322,2]
[403716217,1769503832207,-500.0,0.00015322,2]
[403716218,1769503832215,-500.0,0.00015322,2]
[403716219,1769503832225,-500.0,0.00015322,2]
[403716220,1769503832234,-500.0,0.00015322,2]
[403716221,1769503832244,-500.0,0.00015322,2]
[403716222,1769503832253,-442.97862946,0.00015322,2]
[403716223,1769503832262,-500.0,0.00015322,2]
[403716224,1769503832272,-151.6349133,0.00015322,2]
[403716225,1769503832298,-348.3650867,0.00015322,2]
[403716226,1769503832308,-500.0,0.00015322,2]
[403716227,1769503832318,-500.0,0.00015322,2]
[403716228,1769503832327,-500.0,0.00015322,2]
[403716229,1769503832338,-500.0,0.00015322,2]
[403716230,1769503832347,-500.0,0.00015322,2]
[403716231,1769503832357,-461.6349133,0.00015322,2]
[403716232,1769503832381,-38.3650867,0.00015322,2]
[403716233,1769503832390,-500.0,0.00015322,2]
[403716234,1769503832399,-500.0,0.00015322,2]
[403716235,1769503832408,-500.0,0.00015322,2]
[403716236,1769503832418,-500.0,0.00015322,2]
[403716237,1769503832427,-500.0,0.00015322,2]
[403716238,1769503832436,-645.01955105,0.00015322,2]
[403716239,1769503832446,-500.0,0.00015322,2]
[403716240,1769503832455,-500.0,0.00015322,2]
[403716241,1769503832464,-1291.40756046,0.00015364,2]
[403716242,1769503832474,-150.00377624,0.00015466,2]
[403716243,1769503832484,-166.66,0.00015514,2]
[403716244,1769503832494,-151.0,0.00015555,2]
[403716245,1769503832503,-151.0,0.00015558,2]
[403716246,1769503832512,-1291.40756044,0.00015646,2]
[403716247,1769503832522,-1173.11378091,0.00015793,2]
[403716248,1769503832532,-166.66,0.00015828,2]
[403716249,1769503832541,-500.0,0.00015862,2]
[403716250,1769503832552,-1291.40756044,0.00015928,2]
[403716251,1769503832561,-164.43363999,0.00015979,2]
[403716252,1769503832570,-166.66,0.00016141,2]
[403716253,1769503832579,-1291.40756044,0.00016209,2]
[403716254,1769503832588,-200.0,0.00016355,2]
[403716255,1769503832597,-5716.92,0.00016365,2]
[403716256,1769503832607,-500.0,0.00016373,2]
[403716257,1769503832616,-4875.18,0.00016438,2]
[403716258,1769503832625,-4875.18,0.00016438,2]
[403716259,1769503832635,-4875.18,0.00016438,2]
[403716260,1769503832644,-4875.18,0.00016438,2]
[403716261,1769503832653,-4875.18,0.00016438,2]
[403716262,1769503832663,-4875.18,0.00016438,2]
[403716263,1769503832672,-4875.18,0.00016438,2]
[403716264,1769503832682,-4875.18,0.00016438,2]
[403716265,1769503832691,-4875.18,0.00016438,2]
[403716266,1769503832700,-4875.18,0.00016438,2]
[403716267,1769503832710,-4875.18,0.00016438,2]
[403716268,1769503832719,-4875.18,0.00016438,2]
[403716269,1769503832728,-4875.18,0.00016438,2]
[403716270,1769503832738,-4875.18,0.00016438,2]
[403716271,1769503832747,-4875.18,0.00016438,2]
[403716272,1769503832756,-4875.18,0.00016438,2]
[403716273,1769503832767,-4875.18,0.00016438,2]
[403716274,1769503832776,-4875.18,0.00016438,2]
[403716275,1769503832785,-4875.18,0.00016438,2]
[403716276,1769503832796,-4875.18,0.00016438,2]
[403716277,1769503832806,-4875.18,0.00016438,2]
[403716278,1769503832815,-4875.18,0.00016438,2]
[403716279,1769503832824,-4875.18,0.00016438,2]
[403716280,1769503832835,-4875.30620422,0.00016438,2]
[403716281,1769503832845,-166.66,0.00016455,2]
[403716282,1769503832854,-1291.40756044,0.00016491,2]
[403716283,1769503832864,-384.64,0.00016527,2]
[403716284,1769503832874,-420.0,0.00016754,2]
[403716285,1769503832884,-3023.1228,0.00016767,2]
[403716286,1769503832893,-1291.40756044,0.00016773,2]
[403716287,1769503832903,-600.0,0.00016808,2]
[403716288,1769503832913,-2500.0,0.00016808,2]
[403716289,1769503832922,-500.0,0.00016808,2]
[403716290,1769503832932,-195.0,0.00016808,2]
[403716291,1769503832942,-300.0,0.00016808,2]
[403716292,1769503832951,-300.0,0.0001681,2]
[403716293,1769503832961,-195.0,0.0001681,2]
[403716294,1769503832971,-250.0,0.0001681,2]
[403716295,1769503832981,-150.00377624,0.00016836,2]
[403716296,1769503832991,-1680.0,0.00016838,2]
[403716297,1769503833001,-3754.36593134,0.000169,2]
[403716298,1769503833011,-3754.36593134,0.000169,2]
[403716299,1769503833021,-3754.36593134,0.000169,2]
[403716300,1769503833030,-582.42216707,0.00016921,2]
[403716301,1769503833040,-9999.99,0.00016922,2]
[403716302,1769503833051,-150.99,0.00016922,2]
[403716303,1769503833060,-7189.26,0.00016922,2]
[403716304,1769503833069,-24451.51,0.00016922,2]
[403716305,1769503833079,-299.99,0.00016922,4]
[403716306,1769503833089,-33506.56,0.00016975,2]
[403716307,1769503833098,-233.16540562,0.00016983,2]
[403716308,1769503833108,-161.48,0.00017039,2]
[403716309,1769503833118,-1291.40756044,0.00017055,2]
[403716310,1769503833131,-354.55,0.00017205,2]
[403716311,1769503833140,-1291.40756044,0.00017336,2]
[403716312,1769503833150,-411.18480125,0.00017576,2]
[403716313,1769503833159,-725.3787287,0.00017576,2]
[403716314,1769503833170,-1085.12319608,0.00017576,2]
[403716315,1769503833179,-286.0,0.00017581,2]
[403716316,1769503833190,-1291.40756044,0.00017618,2]
[403716317,1769503833200,-150.0,0.00017699,2]
[403716318,1769503833210,-500.0,0.00017699,2]
[403716319,1769503833219,-500.0,0.00017699,2]
[403716320,1769503833228,-150.0,0.00017699,2]
[403716321,1769503833237,-500.0,0.00017699,2]
[403716322,1769503833247,-150.0,0.00017699,2]
[403716323,1769503833256,-500.0,0.00017699,2]
[403716324,1769503833266,-351.0,0.00017745,2]
[403716325,1769503833276,-500.0,0.00017754,2]
[403716326,1769503833284,-500.0,0.00017754,2]
[403716327,1769503833295,-150.0,0.00017754,2]
[403716328,1769503833304,-500.0,0.00017754,2]
[403716329,1769503833313,-150.0,0.00017754,2]
[403716330,1769503833323,-1000.0,0.000178,2]
[403716331,1769503833333,-500.0,0.00017808,2]
[403716332,1769503833342,-500.0,0.00017809,2]
[403716333,1769503833352,-500.0,0.00017809,2]
[403716334,1769503833362,-200.0,0.00017809,2]
[403716335,1769503833371,-500.0,0.00017809,2]
[403716336,1769503833379,-200.0,0.00017809,2]
[403716337,1769503833390,-924.1,0.0001782,2]
[403716338,1769503833399,-500.0,0.00017863,2]
[403716339,1769503833409,-500.0,0.00017863,2]
[403716340,1769503833418,-500.0,0.00017863,2]
[403716341,1769503833427,-500.0,0.00017863,2]
[403716342,1769503833436,-1000.0,0.000179,2]
[403716343,1769503833446,-1291.40756044,0.000179,2]
[403716344,1769503833455,-205.40520946,0.000179,2]
[403716345,1769503833465,-500.0,0.00017918,2]
[403716346,1769503833474,-500.0,0.00017918,2]
[403716347,1769503833483,-500.0,0.00017918,2]
[403716348,1769503833493,-500.0,0.00017918,2]
[403716349,1769503833502,-419.0,0.00017932,2]
[403716350,1769503833512,-375.19870368,0.00017972,2]
[403716351,1769503833521,-500.0,0.00017973,2]
[403716352,1769503833530,-403.57788103,0.00017973,2]
[403716353,1769503833540,-500.0,0.00017973,2]
[403716354,1769503833550,-744.25254561,0.00017982,2]
[403716355,1769503833560,-9181.23448369,0.00017998,2]
[403716356,1769503833574,-18517.30858501,0.00017998,2]
[403716357,1769503833585,-1961.94354208,0.00017998,2]
[403716358,1769503833596,-883.1256008,0.00017998,2]
[403716359,1769503833616,-500.0,0.00017754,2]
[403716360,1769503833626,-991.53744342,0.00017998,2]
[403716361,1769503833637,-428.83006423,0.00017998,2]
[403716362,1769503833657,-1256.40215516,0.00017998,2]
[403716363,1769503833668,-12946.68030901,0.00017998,2]
[403716364,1769503833680,-20896.72270263,0.00017998,2]
[403716373,1769503837730,-151.0,0.00015556,2]
[403716374,1769503837741,-500.0,0.00017809,2]
[403716375,1769503837753,-500.0,0.00017863,2]
[403716376,1769503837764,-500.0,0.00017918,2]
[403716377,1769503837779,-439.9721102,0.00017973,2]
[403716378,1769503837790,-4377.96092407,0.00017998,2]
[403716379,1769503837799,-150.0,0.00017999,2]
[403716380,1769503837810,-168.15768946,0.00017999,2]
[403716381,1769503837820,-227.7,0.00017999,2]
[403716382,1769503837831,-201.378,0.00017999,2]
[403716383,1769503837841,-2970.5112177,0.00018,2]
[403716384,1769503837853,-7452.56443172,0.00018,2]
[403716385,1769503837866,-11737.65924844,0.00018,2]
[403716386,1769503837879,-480.71237647,0.00018,2]
[403716387,1769503837892,-1924.21865845,0.00018,2]
[403716388,1769503837934,-915.68180285,0.00018,2]
[403716389,1769503837945,-246859.8371434,0.00018,2]
[403716390,1769503837959,-1051.74850456,0.00018,2]
[403716391,1769503837981,-639.31888652,0.00018,2]
[403716559,1769503839838,-4946.69707709,0.00018,2]
[403716575,1769503839996,-5945.50145145,0.00018,2]
[403716577,1769503840007,-1825.86696782,0.00018,2]
[403716592,1769503840154,-833.81730511,0.00018,2]
[403716598,1769503840211,-20446.69668157,0.00018,2]
[403716603,1769503840264,-18530.13659047,0.00018,2]
[403716604,1769503840275,-871.29316464,0.00018,2]
[403716605,1769503840287,-24067.7322501,0.00018,2]
[403716606,1769503840296,-5793.70861354,0.00018,2]
[403716607,1769503840305,-5793.70861354,0.00018,2]
[403716608,1769503840314,-5793.70861354,0.00018,2]
[403716609,1769503840323,-5793.70861354,0.00018,2]
[403716610,1769503840332,-5793.70861354,0.00018,2]
[403716611,1769503840341,-5793.70861354,0.00018,2]
[403716612,1769503840350,-60639.47382936,0.00018,2]
[403716613,1769503840359,-3287783.41391849,0.00018,2]
[403716614,1769503840368,-200.0,0.00018,2]
[403716615,1769503840376,-1000.0,0.00018,2]
[403716616,1769503840385,-166.66,0.00018003,2]
[403716617,1769503840394,-500.0,0.00018028,2]
[403716618,1769503840403,-500.0,0.00018028,2]
[403716619,1769503840412,-204.7422275,0.00018053,2]
[403716620,1769503840421,-725.0,0.00018054,2]
[403716621,1769503840430,-725.0,0.00018059,2]
[403716623,1769503840438,-500.0,0.00018083,2]
[403716624,1769503840448,-500.0,0.00018083,2]
[403716626,1769503840457,-303.32,0.00018112,2]
[403716628,1769503840466,-500.0,0.00018137,2]
[403716630,1769503840475,-500.0,0.00018137,2]
[403716632,1769503840484,-725.0,0.0001819,2]
[403716635,1769503840493,-188.13086915,0.00018192,2]
[403716636,1769503840502,-725.0,0.00018202,2]
[403716639,1769503840512,-150.00377624,0.00018205,3]
[403716642,1769503840521,-340.37,0.00018212,2]
[403716644,1769503840530,-725.0,0.00018252,2]
[403716646,1769503840539,-725.0,0.00018296,2]
[403716648,1769503840548,-691.22,0.00018306,2]
[403716650,1769503840556,-587.0,0.0001833,2]
[403716652,1769503840566,-725.0,0.00018405,2]
[403716654,1769503840575,-725.0,0.00018423,2]
[403716656,1769503840584,-155.0,0.00018449,2]
[403716658,1769503840593,-1000.0,0.000185,2]
[403716660,1769503840602,-2351.0,0.00018515,2]
[403716662,1769503840611,-725.0,0.0001855,2]
[403716664,1769503840621,-1468.2096,0.00018576,2]
[403716666,1769503840631,-725.0,0.00018578,2]
[403716668,1769503840640,-725.0,0.00018692,2]
[403716670,1769503840649,-725.0,0.00018737,2]
[403716672,1769503840658,-308.44,0.00018745,2]
[403716675,1769503840669,-725.0,0.00018773,2]
[403716676,1769503840678,-308.44,0.00018774,2]
[403716678,1769503840687,-308.44,0.00018804,2]
[403716680,1769503840697,-308.44,0.00018833,2]
[403716682,1769503840706,-308.44,0.00018863,2]
[403716684,1769503840716,-3345.44804255,0.00018888,2]
[403716686,1769503840725,-1001.46927476,0.00018888,2]
[403716688,1769503840734,-308.44,0.00018893,2]
[403716690,1769503840743,-155.0,0.00018899,2]
[403716692,1769503840753,-168.61681877,0.000189,2]
[403716694,1769503840761,-308.44,0.00018922,2]
[403716696,1769503840770,-308.44,0.00018952,2]
[403716698,1769503840779,-308.44,0.00018981,2]
[403716700,1769503840788,-5168.48481096,0.00019,2]
[403716702,1769503840797,-339.4526008,0.00019,2]
[403716705,1769503840808,-358.47419463,0.0001901,7]
[403716707,1769503840819,-308.44,0.00019011,2]
[403716708,1769503840828,-725.0,0.00019038,2]
[403716711,1769503840839,-308.44,0.0001904,2]
[403716712,1769503840848,-725.0,0.00019042,2]
[403716714,1769503840857,-725.0,0.00019049,2]
[403716716,1769503840866,-308.44,0.0001907,2]
[403716718,1769503840875,-725.0,0.000191,2]
[403716720,1769503840885,-308.44,0.000191,2]
[403716722,1769503840893,-354.55,0.00019116,2]
[403716724,1769503840902,-308.44,0.00019129,2]
[403716726,1769503840911,-308.44,0.00019159,2]
[403716728,1769503840920,-725.0,0.00019178,2]
[403716730,1769503840929,-500.0,0.00019178,2]
[403716732,1769503840938,-500.0,0.00019178,2]
[403716734,1769503840947,-500.0,0.00019178,2]
[403716736,1769503840955,-500.0,0.00019178,2]
[403716738,1769503840965,-500.0,0.00019178,2]
[403716740,1769503840974,-500.0,0.00019178,2]
[403716742,1769503840984,-500.0,0.00019178,2]
[403716744,1769503840993,-500.0,0.00019178,2]
[403716746,1769503841002,-577.5775629,0.00019178,2]
[403716748,1769503841011,-500.0,0.00019178,2]
[403716750,1769503841020,-500.0,0.00019178,2]
[403716752,1769503841029,-500.0,0.00019178,2]
[403716754,1769503841038,-450.0,0.00019178,2]
[403716756,1769503841047,-20128.29,0.00019178,2]
[403716758,1769503841057,-308.44,0.00019188,2]
[403716760,1769503841066,-308.44,0.00019218,2]
[403716763,1769503841076,-725.0,0.0001924,2]
[403716765,1769503841085,-308.44,0.00019248,2]
[403716767,1769503841094,-308.44,0.00019277,2]
[403716769,1769503841103,-162.0,0.000193,3]
[403716770,1769503841113,-308.44,0.00019307,2]
[403716772,1769503841122,-155.0,0.00019349,2]
[403716774,1769503841134,-725.0,0.00019384,2]
[403716776,1769503841143,-725.0,0.00019394,2]
[403716778,1769503841151,-725.0,0.00019441,2]
[403716780,1769503841161,-725.0,0.00019457,2]
[403716812,1769503841459,-41633.96317344,0.000195,2]
[403716814,1769503841469,-725.0,0.00019511,2]
[403716816,1769503841478,-725.0,0.00019535,2]
[403716818,1769503841487,-150.00377624,0.00019575,7]
[403716820,1769503841496,-924.1,0.00019777,2]
[403716822,1769503841505,-155.0,0.00019799,2]
[403716824,1769503841514,-4922.68431337,0.000199,3]
[403716825,1769503841523,-262427.58415737,0.0001995,15]
[403716827,1769503841533,-394.20877995,0.0002,20]
[403716828,1769503841542,-823.0,0.00020055,2]
[403716829,1769503841551,-10301.2639785,0.00020284,2]
[403716830,1769503841560,-2831.0,0.00020351,2]
[403716831,1769503841572,-2209.0,0.0002036,2]
[403716832,1769503841581,-2831.0,0.00020384,2]
[403716833,1769503841591,-154.25,0.00020548,2]
[403716834,1769503841600,-500.0,0.00020548,2]
[403716835,1769503841611,-500.0,0.00020603,2]
[403716836,1769503841621,-451.25616091,0.00020658,2]
[403716837,1769503841630,-2831.0,0.00020671,2]
[403716838,1769503841639,-159.98208784,0.00020742,2]
[403716839,1769503841648,-2298.5226812,0.00020794,2]
[403716840,1769503841657,-2831.0,0.00020818,2]
[403716841,1769503841666,-2831.0,0.00020818,2]
[403716842,1769503841675,-2831.0,0.00020859,2]
[403716843,1769503841684,-150.00377624,0.00020944,12]
[403716844,1769503841693,-403.82,0.00021,7]
[403716845,1769503841702,-354.55,0.00021028,2]
[403716846,1769503841711,-1439.96,0.00021057,2]
[403716847,1769503841721,-2831.0,0.00021073,2]
[403716848,1769503841730,-2831.0,0.00021179,2]
[403716849,1769503841739,-161.48,0.00021298,2]
[403716851,1769503841748,-2831.0,0.00021393,2]
[403716853,1769503841757,-164.43363997,0.00021435,2]
[403716855,1769503841766,-5800.0,0.00021458,2]
[403716857,1769503841775,-5800.0,0.00021466,2]
[403716859,1769503841785,-5800.0,0.00021475,2]
[403716861,1769503841794,-5800.0,0.00021483,2]
[403716862,1769503841804,-5800.0,0.00021491,2]
[403716864,1769503841813,-2831.0,0.00021499,2]
[403716866,1769503841822,-5800.0,0.000215,2]
[403716867,1769503841831,-597.95309583,0.000215,2]
[403716869,1769503841840,-2831.0,0.00021524,2]
[403716870,1769503841849,-155.0,0.00021599,2]
[403716872,1769503841858,-355.7430528,0.00021607,2]
[403716873,1769503841867,-2831.0,0.00021721,2]
[403716874,1769503841876,-924.1,0.00021733,2]
[403716875,1769503841885,-2831.0,0.00021778,2]
[403716876,1769503841894,-150.0,0.00021801,2]
[403716877,1769503841903,-1000.0,0.00021843,7]
[403716878,1769503841912,-500.0,0.00021973,2]
[403716879,1769503841922,-500.0,0.00021973,2]
[403716880,1769503841932,-500.0,0.00021973,2]
[403716881,1769503841941,-500.0,0.00021973,2]
[403716882,1769503841950,-500.0,0.00021973,2]
[403716883,1769503841959,-500.0,0.00021973,2]
[403716884,1769503841967,-500.0,0.00021973,2]
[403716885,1769503841976,-500.0,0.00021973,2]
[403716886,1769503841985,-500.0,0.00021973,2]
[403716887,1769503841995,-500.0,0.00021973,2]
[403716888,1769503842005,-518.07530174,0.00021973,2]
[403716889,1769503842014,-500.0,0.00021973,2]
[403716890,1769503842024,-500.0,0.00021973,2]
[403716891,1769503842034,-500.0,0.00021973,2]
[403716892,1769503842043,-500.0,0.00021973,2]
[403716893,1769503842053,-500.0,0.00021973,2]
[403716894,1769503842063,-500.0,0.00021973,2]
[403716895,1769503842072,-500.0,0.00021973,2]
[403716896,1769503842081,-504.20951303,0.00021973,2]
[403716897,1769503842091,-500.0,0.00021973,2]
[403716898,1769503842100,-500.0,0.00021973,2]
[403716899,1769503842109,-500.0,0.00021973,2]
[403716900,1769503842118,-515.88206341,0.00021973,2]
[403716901,1769503842131,-500.0,0.00021973,2]
[403716902,1769503842140,-159.98070948,0.00021973,2]
[403716903,1769503842149,-500.0,0.00021973,2]
[403716904,1769503842158,-500.0,0.00021973,2]
[403716905,1769503842168,-505.86407917,0.00021973,2]
[403716906,1769503842177,-500.0,0.00021973,2]
[403716907,1769503842186,-500.0,0.00021973,2]
[403716908,1769503842195,-500.0,0.00021973,2]
[403716909,1769503842205,-500.0,0.00021973,2]
[403716910,1769503842214,-500.0,0.00021973,2]
[403716911,1769503842223,-500.0,0.00021973,2]
[403716912,1769503842232,-500.0,0.00021973,2]
[403716913,1769503842240,-5639.5442053,0.00021985,2]
[403716914,1769503842250,-1718.86,0.00022,7]
[403716915,1769503842259,-455.11,0.00022,2]
[403716916,1769503842267,-798.67506692,0.00022,7]
[403716917,1769503842276,-1102.0,0.00022155,2]
[403716918,1769503842286,-150.00377624,0.00022314,16]
[403716919,1769503842295,-1000.0,0.00022521,2]
[403716920,1769503842304,-2831.0,0.00022589,3]
[403716921,1769503842313,-1258.3524017,0.00022874,2]
[403716922,1769503842322,-354.55,0.0002294,2]
[403716923,1769503842332,-636.50124839,0.00023,7]
[403716924,1769503842341,-500.0,0.00023041,2]
[403716925,1769503842350,-1102.0,0.00023321,2]
[403716926,1769503842358,-250.0,0.00023519,2]
[403716927,1769503842367,-500.0,0.00023519,2]
[403716928,1769503842376,-194.72792766,0.00023519,2]
[403716929,1769503842385,-151.0,0.00023519,2]
[403716930,1769503842394,-151.0,0.00023519,2]
[403716931,1769503842403,-794.38677775,0.00023519,2]
[403716932,1769503842412,-250.0,0.00023519,2]
[403716933,1769503842422,-160.36187769,0.00023519,2]
[403716934,1769503842431,-194.72792766,0.00023519,2]
[403716935,1769503842440,-670.58624095,0.00023519,2]
[403716936,1769503842449,-250.0,0.00023519,2]
[403716937,1769503842458,-3543.0,0.00023519,2]
[403716938,1769503842467,-250.0,0.00023519,2]
[403716939,1769503842475,-290.39862941,0.00023519,2]
[403716940,1769503842484,-194.72792766,0.00023519,2]
[403716941,1769503842493,-1000.0,0.00023519,2]
[403716942,1769503842502,-257.91778498,0.00023519,2]
[403716943,1769503842511,-221.90167299,0.00023519,2]
[403716945,1769503842519,-500.0,0.00023519,2]
[403716946,1769503842529,-500.0,0.00023519,2]
[403716947,1769503842538,-1000.0,0.00023519,2]
[403716948,1769503842547,-500.0,0.00023519,2]
[403716949,1769503842556,-322.6107,0.00023519,2]
[403716950,1769503842565,-502.85513123,0.00023519,2]
[403716951,1769503842574,-250.0,0.00023519,2]
[403716952,1769503842583,-250.0,0.00023519,2]
[403716953,1769503842592,-250.0,0.00023519,2]
[403716954,1769503842601,-250.0,0.00023519,2]
[403716955,1769503842610,-194.72792766,0.00023519,2]
[403716956,1769503842620,-201.93286099,0.00023574,2]
[403716957,1769503842629,-209.40437684,0.00023629,2]
[403716958,1769503842638,-150.00377624,0.00023683,21]
[403716959,1769503842647,-217.15233878,0.00023684,2]
[403716960,1769503842657,-924.1,0.0002369,2]
[403716961,1769503842666,-225.18697532,0.00023739,2]
[403716962,1769503842675,-233.51889341,0.00023794,2]
[403716963,1769503842684,-242.15909246,0.00023849,2]
[403716964,1769503842694,-490.5,0.0002386,10]
[403716965,1769503842703,-251.11897888,0.00023904,2]
[403716966,1769503842713,-260.4103811,0.00023959,2]
[403716967,1769503842722,-270.0455652,0.00024014,2]
[403716968,1769503842731,-823.77908852,0.00024067,2]
[403716969,1769503842742,-280.03725112,0.00024069,2]
[403716970,1769503842752,-290.39862941,0.00024124,2]
[403716971,1769503842761,-301.1433787,0.00024179,2]
[403716972,1769503842770,-3477.0,0.00024505,2]
[403716973,1769503842779,-621.488,0.00024505,2]
[403716974,1769503842789,-1333.0,0.00024505,2]
[403716975,1769503842799,-1408.0,0.00024505,2]
[403716976,1769503842809,-303.251,0.00024505,2]
[403716977,1769503842820,-1287.961,0.00024505,2]
[403716978,1769503842829,-150.0,0.00024505,2]
[403716979,1769503842839,-213.0,0.00024505,2]